[Event "Early-Titled-Tuesday-Blitz-February-13-2024"]
[Site "Chess.com"]
[Date "2024.02.13"]
[Round "1"]
[White "SpeedofLight0"]
[Black "Nouali_Mohamed"]
[Result "1-0"]
[WhiteElo "3059"]
[BlackElo "2539"]
[TimeControl "180+1"]
[EndTime "8:07:20 PST"]
[Termination "SpeedofLight0 won on time"]

1. d4 {[%clk 0:03:00.9]} 1... Nf6 {[%clk 0:02:59.7]} 2. Nc3 {[%clk 0:02:59.6]}
2... d5 {[%clk 0:02:58.2]} 3. Bf4 {[%clk 0:02:59.4]} 3... g6 {[%clk 0:02:54.4]}
4. e3 {[%clk 0:02:58.6]} 4... Bg7 {[%clk 0:02:53.6]} 5. h4 {[%clk 0:02:58.4]}
5... h5 {[%clk 0:02:52.9]} 6. Be2 {[%clk 0:02:57.2]} 6... c5 {[%clk 0:02:42.8]}
7. Nf3 {[%clk 0:02:56]} 7... cxd4 {[%clk 0:02:39.3]} 8. exd4 {[%clk 0:02:56.9]}
8... Nc6 {[%clk 0:02:32.5]} 9. Ne5 {[%clk 0:02:54.7]} 9... O-O {[%clk
0:02:26.4]} 10. f3 {[%clk 0:02:47]} 10... Qb6 {[%clk 0:02:24.9]} 11. Nxc6 {[%clk
0:02:43]} 11... bxc6 {[%clk 0:02:25.8]} 12. Na4 {[%clk 0:02:41.9]} 12... Qa5+
{[%clk 0:02:22.1]} 13. c3 {[%clk 0:02:41.2]} 13... Nd7 {[%clk 0:02:13.8]} 14. b4
{[%clk 0:02:31.6]} 14... Qd8 {[%clk 0:02:11.8]} 15. Qd2 {[%clk 0:02:23.9]} 15...
e5 {[%clk 0:02:10.5]} 16. Bg5 {[%clk 0:02:23.3]} 16... Qc7 {[%clk 0:02:02.1]}
17. O-O {[%clk 0:02:19.6]} 17... a5 {[%clk 0:01:50.7]} 18. b5 {[%clk 0:02:11.7]}
18... cxb5 {[%clk 0:01:27.3]} 19. Bxb5 {[%clk 0:02:12.6]} 19... exd4 {[%clk
0:01:23.1]} 20. cxd4 {[%clk 0:02:11.2]} 20... Qa7 {[%clk 0:01:22.5]} 21. Rfd1
{[%clk 0:01:50.6]} 21... Rb8 {[%clk 0:01:09.5]} 22. Rab1 {[%clk 0:01:49.1]}
22... Ba6 {[%clk 0:00:56.5]} 23. Nc3 {[%clk 0:01:48.8]} 23... Nb6 {[%clk
0:00:50]} 24. Bxa6 {[%clk 0:01:38.9]} 24... Qxa6 {[%clk 0:00:50.8]} 25. Qd3
{[%clk 0:01:35.4]} 25... Qxd3 {[%clk 0:00:37.8]} 26. Rxd3 {[%clk 0:01:36.3]}
26... Rfc8 {[%clk 0:00:37.1]} 27. Bf4 {[%clk 0:01:31.7]} 27... Rb7 {[%clk
0:00:23.4]} 28. Na4 {[%clk 0:01:27.5]} 28... Rc6 {[%clk 0:00:14.5]} 29. Be3
{[%clk 0:01:20.9]} 29... Bf8 {[%clk 0:00:07.2]} 30. Rdb3 {[%clk 0:01:19.5]}
30... Bb4 {[%clk 0:00:06.7]} 31. Nc5 {[%clk 0:01:01.3]} 31... Re7 {[%clk
0:00:04.8]} 32. Bg5 {[%clk 0:00:59.4]} 32... Re2 {[%clk 0:00:04.3]} 33. a3
{[%clk 0:00:53.1]} 33... Bxc5 {[%clk 0:00:04.2]} 34. dxc5 {[%clk 0:00:54]} 34...
Nc4 {[%clk 0:00:04.8]} 35. Rb8+ {[%clk 0:00:28.7]} 35... Kg7 {[%clk 0:00:04.9]}
36. Rd8 {[%clk 0:00:28.9]} 36... Rxc5 {[%clk 0:00:04.4]} 37. Rbb8 {[%clk
0:00:28.4]} 37... f6 {[%clk 0:00:03.3]} 38. Rd7+ {[%clk 0:00:28.3]} 1-0

[Event "Early-Titled-Tuesday-Blitz-February-13-2024"]
[Site "Chess.com"]
[Date "2024.02.13"]
[Round "1"]
[White "MAGMAchess02"]
[Black "kushbhagat2009"]
[Result "0-1"]
[WhiteElo "2277"]
[BlackElo "2628"]
[TimeControl "180+1"]
[EndTime "8:07:20 PST"]
[Termination "kushbhagat2009 won by resignation"]

1. e4 {[%clk 0:03:00.9]} 1... c5 {[%clk 0:02:55.4]} 2. Nc3 {[%clk 0:03:00.7]}
2... d6 {[%clk 0:02:55.5]} 3. d4 {[%clk 0:03:00.2]} 3... cxd4 {[%clk 0:02:53.1]}
4. Qxd4 {[%clk 0:03:01.1]} 4... Nc6 {[%clk 0:02:53.6]} 5. Qd2 {[%clk 0:03:01.2]}
5... g6 {[%clk 0:02:53.2]} 6. b3 {[%clk 0:03:00]} 6... Bh6 {[%clk 0:02:50]} 7.
f4 {[%clk 0:03:00.2]} 7... f5 {[%clk 0:02:49.4]} 8. Bb2 {[%clk 0:02:57.8]} 8...
Nf6 {[%clk 0:02:49.6]} 9. Bd3 {[%clk 0:02:50.2]} 9... O-O {[%clk 0:02:46.5]} 10.
exf5 {[%clk 0:02:39.9]} 10... Bxf5 {[%clk 0:02:33.9]} 11. Bxf5 {[%clk 0:02:39]}
11... gxf5 {[%clk 0:02:34.8]} 12. O-O-O {[%clk 0:02:37.6]} 12... Rc8 {[%clk
0:02:15.3]} 13. Kb1 {[%clk 0:02:35.4]} 13... Qa5 {[%clk 0:02:08.6]} 14. Nf3
{[%clk 0:02:22.3]} 14... b5 {[%clk 0:02:03]} 15. g3 {[%clk 0:02:09.7]} 15... b4
{[%clk 0:01:55.8]} 16. Nd5 {[%clk 0:02:02]} 16... Ne4 {[%clk 0:01:44.8]} 17. Qg2
{[%clk 0:01:32.8]} 17... e6 {[%clk 0:01:07.2]} 18. Qh3 {[%clk 0:01:22.5]} 18...
Bg7 {[%clk 0:01:04.2]} 19. Bxg7 {[%clk 0:01:12.8]} 19... Kxg7 {[%clk 0:01:05.1]}
20. Ng5 {[%clk 0:00:34.5]} 20... Nxg5 {[%clk 0:00:50.8]} 21. fxg5 {[%clk
0:00:35.4]} 21... exd5 {[%clk 0:00:45.5]} 22. Qh6+ {[%clk 0:00:35.3]} 22... Kg8
{[%clk 0:00:44.4]} 23. g6 {[%clk 0:00:19.7]} 23... Qc7 {[%clk 0:00:44.2]} 24. g4
{[%clk 0:00:14]} 24... f4 {[%clk 0:00:37.6]} 25. Rxd5 {[%clk 0:00:11.8]} 25...
Ne5 {[%clk 0:00:34.1]} 26. gxh7+ {[%clk 0:00:06.1]} 26... Qxh7 {[%clk 0:00:35]}
27. Qxd6 {[%clk 0:00:05.4]} 27... Qxc2+ {[%clk 0:00:15]} 28. Ka1 {[%clk
0:00:05.7]} 28... Qc3+ {[%clk 0:00:15]} 29. Kb1 {[%clk 0:00:06]} 29... Qc2+
{[%clk 0:00:09.2]} 30. Ka1 {[%clk 0:00:06.3]} 30... Nf7 {[%clk 0:00:08.2]} 31.
Rd3 {[%clk 0:00:05.2]} 31... Nxd6 {[%clk 0:00:07.7]} 0-1

[Event "Early-Titled-Tuesday-Blitz-February-13-2024"]
[Site "Chess.com"]
[Date "2024.02.13"]
[Round "1"]
[White "KhazhatulyAlikhan"]
[Black "KacperKacprzak"]
[Result "0-1"]
[WhiteElo "2413"]
[BlackElo "2746"]
[TimeControl "180+1"]
[EndTime "8:07:22 PST"]
[Termination "KacperKacprzak won on time"]

1. e4 {[%clk 0:03:00.9]} 1... c5 {[%clk 0:02:57.1]} 2. Nf3 {[%clk 0:03:00.6]}
2... d6 {[%clk 0:02:56.6]} 3. d4 {[%clk 0:03:01.1]} 3... cxd4 {[%clk 0:02:57.5]}
4. Nxd4 {[%clk 0:03:01.3]} 4... Nf6 {[%clk 0:02:58.2]} 5. Nc3 {[%clk 0:03:01.5]}
5... a6 {[%clk 0:02:58.7]} 6. Be2 {[%clk 0:03:00]} 6... e6 {[%clk 0:02:56.9]} 7.
O-O {[%clk 0:02:59.9]} 7... Be7 {[%clk 0:02:57.2]} 8. Be3 {[%clk 0:02:58.7]}
8... O-O {[%clk 0:02:57.3]} 9. h3 {[%clk 0:02:59.3]} 9... Nc6 {[%clk 0:02:55.6]}
10. Qd2 {[%clk 0:02:58.6]} 10... Qc7 {[%clk 0:02:54.3]} 11. f4 {[%clk
0:02:58.8]} 11... b5 {[%clk 0:02:52.8]} 12. a3 {[%clk 0:02:58.3]} 12... Bb7
{[%clk 0:02:52.5]} 13. Bf3 {[%clk 0:02:58.6]} 13... Rac8 {[%clk 0:02:48.2]} 14.
Rf2 {[%clk 0:02:58.4]} 14... Rfe8 {[%clk 0:02:47.4]} 15. g4 {[%clk 0:02:58.3]}
15... Na5 {[%clk 0:02:45.5]} 16. g5 {[%clk 0:02:15.7]} 16... Nc4 {[%clk
0:02:42.8]} 17. Qe2 {[%clk 0:02:11.8]} 17... Nd7 {[%clk 0:02:43]} 18. Nd1 {[%clk
0:02:02.4]} 18... Nxe3 {[%clk 0:02:19.4]} 19. Nxe3 {[%clk 0:02:03.3]} 19... e5
{[%clk 0:02:19.4]} 20. Ndf5 {[%clk 0:01:52.1]} 20... exf4 {[%clk 0:02:18.2]} 21.
Nxe7+ {[%clk 0:01:52.4]} 21... Rxe7 {[%clk 0:02:16.7]} 22. Nf5 {[%clk
0:01:53.3]} 22... Re6 {[%clk 0:02:07.2]} 23. Qd2 {[%clk 0:01:49.3]} 23... Ne5
{[%clk 0:01:47.9]} 24. Bh1 {[%clk 0:01:43.6]} 24... Ng6 {[%clk 0:01:40.9]} 25.
Qd4 {[%clk 0:01:02.4]} 25... Re5 {[%clk 0:01:31.8]} 26. h4 {[%clk 0:00:41.5]}
26... Qc5 {[%clk 0:01:30.5]} 27. Rd1 {[%clk 0:00:37.1]} 27... Rd8 {[%clk
0:00:44.6]} 28. h5 {[%clk 0:00:22.6]} 28... Nf8 {[%clk 0:00:44.4]} 29. Qxc5
{[%clk 0:00:17.4]} 29... Rxc5 {[%clk 0:00:45.3]} 30. Rxd6 {[%clk 0:00:06]} 30...
Re8 {[%clk 0:00:40.3]} 31. c3 {[%clk 0:00:03.5]} 31... Ne6 {[%clk 0:00:35.7]}
32. g6 {[%clk 0:00:01.9]} 32... hxg6 {[%clk 0:00:35.6]} 33. hxg6 {[%clk
0:00:02.6]} 33... fxg6 {[%clk 0:00:35.7]} 34. Nd4 {[%clk 0:00:03.3]} 34... Ng5
{[%clk 0:00:33]} 35. Rxf4 {[%clk 0:00:01.8]} 35... Nh3+ {[%clk 0:00:32.9]} 36.
Kh2 {[%clk 0:00:02.7]} 36... Nxf4 {[%clk 0:00:33.8]} 37. Rb6 {[%clk 0:00:02.7]}
37... Bc8 {[%clk 0:00:32.4]} 38. Bf3 {[%clk 0:00:01.4]} 38... Rg5 {[%clk
0:00:29.9]} 39. Kh1 {[%clk 0:00:01.2]} 39... Kf7 {[%clk 0:00:30.1]} 40. e5
{[%clk 0:00:01.1]} 40... Rh8+ {[%clk 0:00:29.8]} 0-1

[Event "Early-Titled-Tuesday-Blitz-February-13-2024"]
[Site "Chess.com"]
[Date "2024.02.13"]
[Round "1"]
[White "LionelMessiFCB"]
[Black "Grandelicious"]
[Result "0-1"]
[WhiteElo "2491"]
[BlackElo "2890"]
[TimeControl "180+1"]
[EndTime "8:07:25 PST"]
[Termination "Grandelicious won by resignation"]

1. e4 {[%clk 0:03:00.9]} 1... c5 {[%clk 0:02:59.7]} 2. Nf3 {[%clk 0:03:00.3]}
2... e6 {[%clk 0:03:00.3]} 3. g3 {[%clk 0:03:00.2]} 3... Nc6 {[%clk 0:03:00.2]}
4. Bg2 {[%clk 0:03:00.2]} 4... Nf6 {[%clk 0:03:00.9]} 5. Qe2 {[%clk 0:02:58.2]}
5... e5 {[%clk 0:03:01]} 6. O-O {[%clk 0:02:57.7]} 6... Be7 {[%clk 0:03:01.5]}
7. c3 {[%clk 0:02:57.5]} 7... O-O {[%clk 0:03:01]} 8. Rd1 {[%clk 0:02:56.6]}
8... d5 {[%clk 0:03:00.4]} 9. exd5 {[%clk 0:02:43.8]} 9... Qxd5 {[%clk
0:03:01.3]} 10. d4 {[%clk 0:02:44]} 10... e4 {[%clk 0:02:58.8]} 11. Ng5 {[%clk
0:02:25.9]} 11... Bg4 {[%clk 0:02:57.4]} 12. f3 {[%clk 0:02:02.6]} 12... exf3
{[%clk 0:02:58.3]} 13. Bxf3 {[%clk 0:02:02.2]} 13... Bxf3 {[%clk 0:02:58.2]} 14.
Qxf3 {[%clk 0:02:03.1]} 14... cxd4 {[%clk 0:02:55]} 15. cxd4 {[%clk 0:01:58.7]}
15... Rfd8 {[%clk 0:02:08.8]} 16. Nc3 {[%clk 0:01:46.7]} 16... Qc4 {[%clk
0:01:31.4]} 17. Qe2 {[%clk 0:01:28]} 17... Rxd4 {[%clk 0:01:25]} 18. Rxd4 {[%clk
0:01:08.9]} 18... Qxd4+ {[%clk 0:01:25.9]} 19. Be3 {[%clk 0:01:08.8]} 19... Qg4
{[%clk 0:01:26.1]} 20. Qb5 {[%clk 0:00:56.5]} 20... Rb8 {[%clk 0:00:59.9]} 21.
Bf4 {[%clk 0:00:34.8]} 21... a6 {[%clk 0:00:51.6]} 22. Qb3 {[%clk 0:00:34.1]}
22... Bc5+ {[%clk 0:00:47.2]} 23. Kg2 {[%clk 0:00:32.8]} 23... Rf8 {[%clk
0:00:42.2]} 24. Qxb7 {[%clk 0:00:31.5]} 24... Nd4 {[%clk 0:00:42.4]} 25. h3
{[%clk 0:00:27.1]} 25... Qf5 {[%clk 0:00:39.4]} 26. Rf1 {[%clk 0:00:24.1]} 26...
Qd3 {[%clk 0:00:34.4]} 27. Nce4 {[%clk 0:00:20]} 27... Nxe4 {[%clk 0:00:28.6]}
28. Qxe4 {[%clk 0:00:20]} 28... Qxe4+ {[%clk 0:00:26.8]} 29. Nxe4 {[%clk
0:00:20.9]} 29... Be7 {[%clk 0:00:26.4]} 30. Rd1 {[%clk 0:00:20.7]} 30... Ne6
{[%clk 0:00:26.6]} 31. Be3 {[%clk 0:00:19.3]} 31... Rc8 {[%clk 0:00:25.5]} 32.
Rd7 {[%clk 0:00:19.2]} 32... Bf8 {[%clk 0:00:24.5]} 33. Bf2 {[%clk 0:00:18.7]}
33... Rc2 {[%clk 0:00:24.1]} 34. Rd2 {[%clk 0:00:18.9]} 34... Rc1 {[%clk
0:00:23.4]} 35. Nc3 {[%clk 0:00:19]} 35... h5 {[%clk 0:00:21.5]} 36. a3 {[%clk
0:00:18.9]} 36... Be7 {[%clk 0:00:18]} 37. h4 {[%clk 0:00:18.9]} 37... g5 {[%clk
0:00:17.8]} 38. Ne2 {[%clk 0:00:18.7]} 38... Rc4 {[%clk 0:00:17.1]} 39. hxg5
{[%clk 0:00:19]} 39... Bxg5 {[%clk 0:00:18]} 40. Rd5 {[%clk 0:00:19.2]} 40...
Rc2 {[%clk 0:00:17.9]} 41. Nf4 {[%clk 0:00:18.8]} 41... Bxf4 {[%clk 0:00:18.3]}
0-1

[Event "Early-Titled-Tuesday-Blitz-February-13-2024"]
[Site "Chess.com"]
[Date "2024.02.13"]
[Round "1"]
[White "Elprofessor21"]
[Black "atomicmate123"]
[Result "1-0"]
[WhiteElo "2672"]
[BlackElo "2336"]
[TimeControl "180+1"]
[EndTime "8:07:25 PST"]
[Termination "Elprofessor21 won by resignation"]

1. d4 {[%clk 0:02:58]} 1... d5 {[%clk 0:02:59.4]} 2. Nf3 {[%clk 0:02:51.8]} 2...
c5 {[%clk 0:02:58.5]} 3. c3 {[%clk 0:02:49.2]} 3... Nc6 {[%clk 0:02:58.4]} 4.
Bf4 {[%clk 0:02:49.2]} 4... Nf6 {[%clk 0:02:58.3]} 5. Nbd2 {[%clk 0:02:48.4]}
5... Bf5 {[%clk 0:02:54.9]} 6. e3 {[%clk 0:02:44.2]} 6... e6 {[%clk 0:02:52.2]}
7. Be2 {[%clk 0:02:41.3]} 7... Bd6 {[%clk 0:02:50.7]} 8. Bxd6 {[%clk 0:02:40.4]}
8... Qxd6 {[%clk 0:02:51.6]} 9. O-O {[%clk 0:02:40.6]} 9... O-O {[%clk
0:02:51.1]} 10. dxc5 {[%clk 0:02:24.6]} 10... Qxc5 {[%clk 0:02:49.6]} 11. Nd4
{[%clk 0:02:25.5]} 11... Nxd4 {[%clk 0:02:46.4]} 12. exd4 {[%clk 0:02:25.2]}
12... Qd6 {[%clk 0:02:45.7]} 13. a4 {[%clk 0:02:21.5]} 13... Ne4 {[%clk
0:02:41]} 14. Nf3 {[%clk 0:02:17]} 14... a5 {[%clk 0:02:38.3]} 15. Ne5 {[%clk
0:02:14.3]} 15... Rac8 {[%clk 0:02:17.8]} 16. Nd3 {[%clk 0:02:09.3]} 16... b6
{[%clk 0:01:53]} 17. Bg4 {[%clk 0:02:08.7]} 17... Bxg4 {[%clk 0:01:41.8]} 18.
Qxg4 {[%clk 0:02:07.9]} 18... Nf6 {[%clk 0:01:32.4]} 19. Qe2 {[%clk 0:02:00.7]}
19... Nd7 {[%clk 0:01:28.9]} 20. g3 {[%clk 0:01:57.9]} 20... Rfe8 {[%clk
0:01:29]} 21. Rfe1 {[%clk 0:01:45.4]} 21... Re7 {[%clk 0:01:28.5]} 22. h4 {[%clk
0:01:43.9]} 22... Rce8 {[%clk 0:01:28.5]} 23. Rad1 {[%clk 0:01:41.6]} 23... e5
{[%clk 0:01:28]} 24. dxe5 {[%clk 0:01:39.5]} 24... Nxe5 {[%clk 0:01:28.3]} 25.
Nxe5 {[%clk 0:01:37]} 25... Rxe5 {[%clk 0:01:28.1]} 26. Qd2 {[%clk 0:01:36.1]}
26... Rxe1+ {[%clk 0:01:25.7]} 27. Rxe1 {[%clk 0:01:36.1]} 27... Rxe1+ {[%clk
0:01:23.6]} 28. Qxe1 {[%clk 0:01:37]} 28... Qe6 {[%clk 0:01:22.8]} 29. Qxe6
{[%clk 0:01:21]} 29... fxe6 {[%clk 0:01:21.9]} 30. f4 {[%clk 0:01:21.6]} 30...
Kf7 {[%clk 0:01:21.8]} 31. Kf2 {[%clk 0:01:22.2]} 31... Kf6 {[%clk 0:01:21.9]}
32. g4 {[%clk 0:01:10]} 32... e5 {[%clk 0:01:14.3]} 33. Ke3 {[%clk 0:01:03.9]}
33... exf4+ {[%clk 0:01:08.6]} 34. Kxf4 {[%clk 0:01:03.9]} 34... h6 {[%clk
0:01:05.7]} 35. Kf3 {[%clk 0:00:55.6]} 35... Ke5 {[%clk 0:01:05.2]} 36. Ke3
{[%clk 0:00:55.7]} 36... g5 {[%clk 0:01:02.1]} 37. hxg5 {[%clk 0:00:48.9]} 37...
hxg5 {[%clk 0:01:01.5]} 38. b3 {[%clk 0:00:49]} 38... Ke6 {[%clk 0:00:57.6]} 39.
Kd4 {[%clk 0:00:46.3]} 39... Kd6 {[%clk 0:00:56.3]} 40. b4 {[%clk 0:00:37.9]}
40... Kc6 {[%clk 0:00:32.8]} 41. Ke5 {[%clk 0:00:34.8]} 41... axb4 {[%clk
0:00:18]} 42. cxb4 {[%clk 0:00:34.4]} 42... d4 {[%clk 0:00:16.4]} 43. Kxd4
{[%clk 0:00:34.1]} 43... Kd6 {[%clk 0:00:17]} 1-0

[Event "Early-Titled-Tuesday-Blitz-February-13-2024"]
[Site "Chess.com"]
[Date "2024.02.13"]
[Round "1"]
[White "DishonorOnYourCow"]
[Black "lluiss"]
[Result "1-0"]
[WhiteElo "2578"]
[BlackElo "2151"]
[TimeControl "180+1"]
[EndTime "8:07:25 PST"]
[Termination "DishonorOnYourCow won on time"]

1. d4 {[%clk 0:03:00.1]} 1... d5 {[%clk 0:02:57.9]} 2. c4 {[%clk 0:03:00.3]}
2... c6 {[%clk 0:02:57.4]} 3. Nf3 {[%clk 0:02:59.7]} 3... e6 {[%clk 0:02:57.4]}
4. e3 {[%clk 0:03:00.2]} 4... f5 {[%clk 0:02:57.4]} 5. Bd3 {[%clk 0:03:00.4]}
5... Nf6 {[%clk 0:02:57.5]} 6. b3 {[%clk 0:02:59]} 6... Bd6 {[%clk 0:02:51.2]}
7. Nbd2 {[%clk 0:02:58.5]} 7... O-O {[%clk 0:02:49.1]} 8. Bb2 {[%clk 0:02:59]}
8... Bd7 {[%clk 0:02:48.9]} 9. Ne5 {[%clk 0:02:58.2]} 9... Be8 {[%clk
0:02:43.7]} 10. O-O {[%clk 0:02:57]} 10... Bh5 {[%clk 0:02:43.3]} 11. Qc2 {[%clk
0:02:56.8]} 11... Nbd7 {[%clk 0:02:35.3]} 12. f3 {[%clk 0:02:56]} 12... c5
{[%clk 0:02:09.9]} 13. cxd5 {[%clk 0:02:50.8]} 13... Nxd5 {[%clk 0:02:07.5]} 14.
Rae1 {[%clk 0:02:40.5]} 14... Rc8 {[%clk 0:01:51]} 15. Ndc4 {[%clk 0:02:30.4]}
15... Bb8 {[%clk 0:01:40.5]} 16. Qd2 {[%clk 0:02:25.5]} 16... b5 {[%clk
0:01:25.6]} 17. Nxd7 {[%clk 0:02:21]} 17... Qxd7 {[%clk 0:01:21.1]} 18. Na5
{[%clk 0:01:45]} 18... Nb4 {[%clk 0:01:16.7]} 19. g3 {[%clk 0:01:18.2]} 19...
Qc7 {[%clk 0:00:53.6]} 20. Bxb5 {[%clk 0:00:43.1]} 20... Qxa5 {[%clk 0:00:52.8]}
21. Bd7 {[%clk 0:00:43.3]} 21... Rcd8 {[%clk 0:00:21.6]} 22. Bxe6+ {[%clk
0:00:42.5]} 22... Bf7 {[%clk 0:00:18.8]} 23. Bxf5 {[%clk 0:00:37.9]} 23... cxd4
{[%clk 0:00:11.7]} 24. Bxd4 {[%clk 0:00:34.1]} 24... Be5 {[%clk 0:00:10.5]} 25.
Be4 {[%clk 0:00:20.3]} 25... Bxd4 {[%clk 0:00:10.1]} 26. exd4 {[%clk 0:00:21.2]}
26... Qb6 {[%clk 0:00:08.9]} 27. Rd1 {[%clk 0:00:21]} 27... Bd5 {[%clk
0:00:07.9]} 28. a3 {[%clk 0:00:20]} 28... Bxe4 {[%clk 0:00:05.9]} 29. axb4
{[%clk 0:00:19.9]} 29... Bd5 {[%clk 0:00:05.2]} 30. Qd3 {[%clk 0:00:19.4]} 30...
Rb8 {[%clk 0:00:04.4]} 31. Rfe1 {[%clk 0:00:17.1]} 31... Qxb4 {[%clk 0:00:04.5]}
32. Re7 {[%clk 0:00:17.7]} 32... Qxb3 {[%clk 0:00:04.4]} 33. Qd2 {[%clk
0:00:14.6]} 33... Rf7 {[%clk 0:00:02.4]} 34. Rxf7 {[%clk 0:00:10.6]} 34... Bxf7
{[%clk 0:00:01.6]} 35. Rf1 {[%clk 0:00:07.8]} 35... Qb6 {[%clk 0:00:01.5]} 36.
Qf4 {[%clk 0:00:08.3]} 1-0

[Event "Early-Titled-Tuesday-Blitz-February-13-2024"]
[Site "Chess.com"]
[Date "2024.02.13"]
[Round "1"]
[White "doublesik"]
[Black "jcibarra"]
[Result "0-1"]
[WhiteElo "2524"]
[BlackElo "2971"]
[TimeControl "180+1"]
[EndTime "8:07:26 PST"]
[Termination "jcibarra won by resignation"]

1. d4 {[%clk 0:02:59.7]} 1... Nf6 {[%clk 0:02:59.2]} 2. c4 {[%clk 0:03:00.1]}
2... d6 {[%clk 0:02:59.6]} 3. Nf3 {[%clk 0:03:00.1]} 3... g6 {[%clk 0:02:59.8]}
4. Nc3 {[%clk 0:03:00.5]} 4... Bf5 {[%clk 0:03:00.1]} 5. Bf4 {[%clk 0:02:50.6]}
5... Bg7 {[%clk 0:02:58.5]} 6. e3 {[%clk 0:02:50.8]} 6... O-O {[%clk 0:02:58.8]}
7. h3 {[%clk 0:02:50.9]} 7... c5 {[%clk 0:02:58.6]} 8. Be2 {[%clk 0:02:50.7]}
8... Nc6 {[%clk 0:02:57.8]} 9. O-O {[%clk 0:02:50]} 9... cxd4 {[%clk 0:02:57.4]}
10. exd4 {[%clk 0:02:50.9]} 10... d5 {[%clk 0:02:57.6]} 11. Ne5 {[%clk
0:02:45.7]} 11... Rc8 {[%clk 0:02:54.4]} 12. Bf3 {[%clk 0:02:32.7]} 12... dxc4
{[%clk 0:02:53.6]} 13. Bxc6 {[%clk 0:02:31.1]} 13... bxc6 {[%clk 0:02:53.1]} 14.
Nxc4 {[%clk 0:02:26.3]} 14... Nd5 {[%clk 0:02:29.5]} 15. Be5 {[%clk 0:02:06.1]}
15... f6 {[%clk 0:02:27.2]} 16. Bg3 {[%clk 0:01:58]} 16... c5 {[%clk 0:02:24.5]}
17. Nxd5 {[%clk 0:01:17.4]} 17... Qxd5 {[%clk 0:02:25.4]} 18. Ne3 {[%clk
0:01:16.3]} 18... Qxd4 {[%clk 0:02:24.8]} 19. Nxf5 {[%clk 0:01:11.5]} 19... gxf5
{[%clk 0:02:24]} 20. Qe2 {[%clk 0:01:07.8]} 20... e5 {[%clk 0:02:18.8]} 21. Rfd1
{[%clk 0:00:56.8]} 21... Qe4 {[%clk 0:02:19]} 22. Qa6 {[%clk 0:00:53.7]} 22...
f4 {[%clk 0:02:14.6]} 23. f3 {[%clk 0:00:53.4]} 23... Qc6 {[%clk 0:02:12.3]} 24.
Qc4+ {[%clk 0:00:51.9]} 24... Kh8 {[%clk 0:02:10.1]} 25. Bf2 {[%clk 0:00:52.1]}
25... f5 {[%clk 0:02:08.3]} 26. Rd5 {[%clk 0:00:48.6]} 26... Qg6 {[%clk
0:02:02.5]} 27. Re1 {[%clk 0:00:40.8]} 27... Rfe8 {[%clk 0:01:56.4]} 28. Rxc5
{[%clk 0:00:19.5]} 28... Rcd8 {[%clk 0:01:56.5]} 29. Rd5 {[%clk 0:00:18.4]}
29... Rc8 {[%clk 0:01:46.1]} 30. Rc5 {[%clk 0:00:18.1]} 30... Rb8 {[%clk
0:01:45.6]} 31. Rb5 {[%clk 0:00:15.5]} 31... Rxb5 {[%clk 0:01:43.8]} 32. Qxb5
{[%clk 0:00:16.4]} 32... e4 {[%clk 0:01:44.3]} 33. Bxa7 {[%clk 0:00:08.9]} 33...
Rd8 {[%clk 0:01:37.7]} 34. fxe4 {[%clk 0:00:07.8]} 34... f3 {[%clk 0:01:29.9]}
35. Qf1 {[%clk 0:00:07.4]} 35... fxe4 {[%clk 0:01:29.4]} 36. Kh1 {[%clk
0:00:06.7]} 36... Rd2 {[%clk 0:01:24.7]} 37. Bf2 {[%clk 0:00:04.3]} 37... fxg2+
{[%clk 0:01:02.1]} 38. Qxg2 {[%clk 0:00:05.2]} 38... Qxg2+ {[%clk 0:01:02.4]}
39. Kxg2 {[%clk 0:00:06.1]} 39... Bd4 {[%clk 0:01:02.7]} 40. Rxe4 {[%clk
0:00:06.5]} 40... Bxf2 {[%clk 0:01:02.8]} 41. Kf3 {[%clk 0:00:05.6]} 41... Bc5
{[%clk 0:00:49.4]} 42. Re2 {[%clk 0:00:04]} 42... Rd3+ {[%clk 0:00:48.3]} 43.
Kg4 {[%clk 0:00:04.5]} 43... Kg7 {[%clk 0:00:47.6]} 44. a3 {[%clk 0:00:04.2]}
44... Rb3 {[%clk 0:00:46.6]} 45. Rc2 {[%clk 0:00:03.9]} 45... Bd4 {[%clk
0:00:45.5]} 46. Rd2 {[%clk 0:00:02.8]} 46... Bxb2 {[%clk 0:00:44.2]} 47. Rd7+
{[%clk 0:00:02.6]} 47... Kg6 {[%clk 0:00:44.3]} 48. Rd6+ {[%clk 0:00:02.1]}
48... Bf6 {[%clk 0:00:44.9]} 49. Ra6 {[%clk 0:00:02]} 49... h5+ {[%clk
0:00:44.5]} 50. Kf4 {[%clk 0:00:02.8]} 50... Rxh3 {[%clk 0:00:44.1]} 51. a4
{[%clk 0:00:03.7]} 51... Ra3 {[%clk 0:00:42.7]} 52. a5 {[%clk 0:00:04.1]} 52...
h4 {[%clk 0:00:43.1]} 53. Kg4 {[%clk 0:00:04.2]} 53... h3 {[%clk 0:00:43]} 54.
Ra8 {[%clk 0:00:04.9]} 54... h2 {[%clk 0:00:42.2]} 0-1